[Event "16th Serbian Championship 2022"]
[Site "Bajina Basta"]
[Date "2022.12.09"]
[Round "4.4"]
[White "Djordjevic, Vuk"]
[Black "Bogosavljevic, Boban"]
[Result "1-0"]
[ECO "B20"]
[WhiteElo "2394"]
[BlackElo "2521"]
[Annotator "TA"]
[PlyCount "167"]
[EventDate "2022.12.06"]
[EventType "tourn"]
[EventCountry "SRB"]
[SourceTitle "playchess.com"]
[Source "ChessBase"]
[SourceQuality "1"]
[TimeControl "40/5400+30:1800+30"]

{[%evp 17,167,16,9,-4,10,18,16,0,-7,-7,0,-17,0,0,0,0,0,0,0,0,0,0,0,0,0,0,0,0,0,0,14,0,74,84,59,62,181,185,169,159,164,140,141,95,111,96,267,250,252,266,245,183,184,193,191,75,96,93,101,105,107,67,109,52,20,6,15,0,0,0,0,-149,0,0,0,0,5,0,0,0,0,0,0,0,31,0,17,17,25,16,18,23,62,51,66,61,69,17,17,17,81,74,83,12,17,8,8,9,21,10,68,9,17,7,117,118,136,136,410,395,511,506,504,512,512,502,504,513,505,469,482,0,458,498,473,482,658,594,1330,1174,1435,1318,1899,1769,5410,1711,4960,4960,29969,29969,29985,29986]} 1. e4 {[%emt 1:31:00]} c5 {[%emt 0:02:19]} 2. g3 {[%emt 0:00:00]} Nc6 {[%emt 0:00:06]} 3. Bg2 {[%emt 0:00:00]} g6 {[%emt 0:00:05]} 4. Ne2 {[%emt 0:00:00]} Bg7 {[%emt 0:00:07]} 5. O-O {[%emt 0:00:00]} d6 {[%emt 0:00:09]} 6. c3 {[%emt 0:00:00]} e5 {[%emt 0:00:09]} 7. d3 {[%emt 0:00:00]} Nge7 {[%emt 0:00:25]} 8. Be3 {[%emt 0:00:00]} O-O {[%emt 0:03:39]} 9. f4 {[%emt 0:00:00]} Be6 {[%emt 0:02:49]} 10. Nd2 {[%emt 0:00:00] B20: Sicilian: Unusual White 2nd moves.} Qb6 {[%emt 0:14:21]} 11. Qc2 {[%emt 0:00:00] [#]} Rac8 $146 {[%emt 0:18:47][%cal Oc6d4]} ({Predecessor:} 11... a5 12. a4 Rac8 13. Nf3 h6 14. Qd2 Kh7 15. f5 gxf5 16. Nh4 fxe4 17. dxe4 Rcd8 {1-0 (35) Mozes,E (2385)-Todor,R (2305) Budapest 1994}) 12. Nc4 {[%emt 0:00:00] The position is equal.} Qc7 {[%emt 0:00:13]} 13. fxe5 {[%emt 0:00:00]} Nxe5 {[%emt 0:14:10]} 14. Na3 {[%emt 0:00:00]} a6 {[%emt 0:03:48]} 15. Nf4 {[%emt 0:00:00]} Bd7 {[%emt 0:01:26]} 16. h3 {[%emt 0:00:00]} b5 {[%emt 0:00:21]} 17. Qd2 {[%emt 0:00:00]} Qa5 {[%emt 0:12:52]} 18. d4 {[%emt 0:00:00]} cxd4 {[%emt 0:00:15]} 19. Bxd4 {[%emt 0:00:00]} N7c6 {[%emt 0:02:06]} 20. Be3 {[%emt 0:00:00]} b4 {[%emt 0:01:21]} 21. cxb4 {[%emt 0:00:00]} Qxb4 {[%emt 0:00:05]} 22. Rad1 {[%emt 0:00:00]} Rb8 {[%emt 0:07:44]} 23. Rf2 {[%emt 0:00:00]} Qa4 {[%emt 0:01:32][%cal Ob8b2]} 24. Qxd6 {[%emt 0:07:34]} Rfd8 {[%emt 0:08:04]} (24... Bxh3 $11 25. b3 (25. Bxh3 $2 {loses.} Rfd8 $19) 25... Qa5) 25. b3 $1 $16 {[%emt 0:00:19] White is more active.} Qa5 {[%emt 0:00:04]} 26. Qc5 $1 {[%emt 0:00:31]} Rdc8 {[%emt 0:06:02]} (26... Be6 $14 27. Rxd8+ Qxd8) 27. Qxa5 $18 {[%emt 0:01:54]} Nxa5 {[%emt 0:00:00]} 28. Nd5 {[%emt 0:00:24] Black must now prevent Ne7+.} Nac6 {[%emt 0:00:20] Prevents Ne7+.} 29. Rfd2 {[%emt 0:01:53] Hoping for Nb6.} Be6 {[%emt 0:00:38]} 30. Nc2 {[%emt 0:00:47]} (30. Kh1 $142) 30... a5 $16 {[%emt 0:00:15][%cal Oa5a4]} 31. Nd4 {[%emt 0:00:27] Inhibits a4.} a4 $2 {[%emt 0:01:12]} (31... Nxd4 $16 {was called for.} 32. Bxd4 Rb7) 32. Nxc6 $18 {[%emt 0:00:41]} ({But not} 32. bxa4 $6 Nxd4 33. Rxd4 Rc2 $16) 32... Nxc6 {[%emt 0:00:01][%cal Be5c6,Bc6a5,Ba5c4][%mdl 32]} 33. bxa4 {[%emt 0:00:40]} Be5 {[%emt 0:00:59]} 34. g4 {[%emt 0:00:44]} Kg7 {[%emt 0:00:06]} 35. Bf1 {[%emt 0:00:26]} Na5 {[%emt 0:00:54]} 36. Bb5 {[%emt 0:00:35]} (36. Ba6 $18 {and White stays clearly on top.}) 36... Nc4 $16 {[%emt 0:00:34] [#] Strongly threatening ...Bxd5.} 37. Bd4 $1 {[%emt 0:00:15]} Bxd4+ {[%emt 0:00:26]} 38. Rxd4 {[%emt 0:00:13]} Ne5 {[%emt 0:00:33]} 39. Kg2 {[%emt 0:00:38] Inhibits Nf3.} h5 {[%emt 0:00:20]} 40. g5 {[%emt 0:00:52]} (40. gxh5 $16 gxh5 41. R4d2) 40... h4 $1 $14 {[%emt 0:00:32]} 41. R4d2 {[%emt 0:12:27]} Rc5 {[%emt 0:10:19]} (41... Nc4 {simplifies} 42. Re2 Na3 43. Nf4 Nxb5 44. Nxe6+ fxe6 45. axb5 Rxb5 46. Rd7+ Kg8) 42. Rf1 {[%emt 0:02:19]} Nc4 {[%emt 0:12:17]} 43. Rd3 {[%emt 0:08:06]} Nd6 {[%emt 0:02:37][%csl LRb5,LRe4]} 44. Rc3 {[%emt 0:01:19]} (44. Nf4 $11 Rxg5+ 45. Kh1 Nxb5 46. Nxe6+ fxe6 47. Rb3) 44... Nxe4 {[%emt 0:05:09]} (44... Rcxb5 $1 $17 45. axb5 Nxe4) 45. Rxc5 $11 {[%emt 0:00:07]} Nxc5 {[%emt 0:00:03]} 46. Nc7 {[%emt 0:04:07] Rc1 is the strong threat.} Bxa2 {[%emt 0:00:44]} 47. Rf4 {[%emt 0:00:27]} Rc8 {[%emt 0:01:14]} 48. Ne8+ {[%emt 0:00:33]} Kf8 {[%emt 0:00:02]} 49. Rxh4 {[%emt 0:01:22]} Ne6 {[%emt 0:00:09][%cal Oe6g5]} 50. Rg4 {[%emt 0:02:24]} Rc2+ {[%emt 0:00:32]} 51. Kf1 {[%emt 0:01:11]} Ke7 {[%emt 0:02:17]} 52. h4 {[%emt 0:00:29]} Bd5 {[%emt 0:00:45]} 53. Nf6 {[%emt 0:00:44]} Bf3 {[%emt 0:00:15]} 54. Rb4 {[%emt 0:00:25]} Nc5 {[%emt 0:00:13]} 55. Rf4 {[%emt 0:01:16]} Bg2+ {[%emt 0:00:16]} 56. Ke1 {[%emt 0:00:28]} Ra2 {[%emt 0:00:39]} 57. Rf2 {[%emt 0:00:38]} ({White should try} 57. Ng8+ $14 Kd6 58. Rxf7) 57... Ra1+ {[%emt 0:00:08]} 58. Ke2 {[%emt 0:00:21]} Bb7 {[%emt 0:00:29] [#]} (58... Bh3 $1 $11 {keeps the balance.}) 59. Rf4 $1 $16 {[%emt 0:00:28]} Kd6 {[%emt 0:01:17]} 60. Ng4 {[%emt 0:00:51]} ({Better is} 60. Be8 $16) 60... Ra2+ {[%emt 0:00:41]} 61. Ke3 {[%emt 0:00:11]} Ra3+ {[%emt 0:00:03]} 62. Kd2 {[%emt 0:00:45]} Ne4+ {[%emt 0:00:12]} 63. Kc1 {[%emt 0:00:26]} Kc5 {[%emt 0:01:18]} (63... Bd5 $11) 64. Kb2 {[%emt 0:00:33]} (64. Rxf7 $14 Bd5 65. Rf4) 64... Rh3 $11 {[%emt 0:00:26]} 65. Ne5 {[%emt 0:00:34]} (65. Rxf7 {simplifies} Rxh4 66. Nf6 Nd6 67. Rc7+) 65... Rh2+ {[%emt 0:00:08]} (65... Bd5 $11) 66. Ka3 $16 {[%emt 0:00:31] Black is on the road to losing.} Bd5 {[%emt 0:00:54][%csl Gd5][%cal Rh2a2]} 67. Nd7+ {[%emt 0:00:32]} (67. Nxf7 $2 Ra2#) 67... Kd4 $2 {[%emt 0:00:25][%mdl 8192] [#]} (67... Kd6 $16) 68. Nf6 $1 $18 {[%emt 0:01:03]} Bb7 {[%emt 0:00:37]} 69. Nxe4 {[%emt 0:00:00]} Ke5 {[%emt 0:00:10] Prevents Nf6.} 70. Rxf7 {[%emt 0:00:17]} Bxe4 {[%emt 0:00:02][%mdl 4096] Endgame KRB-KRB} 71. Rh7 {[%emt 0:00:23]} Kd4 {[%emt 0:01:08]} 72. Kb4 {[%emt 0:00:14]} Bf3 {[%emt 0:00:29]} 73. Rh6 {[%emt 0:00:55]} Be4 {[%emt 0:00:23]} 74. Rh7 {[%emt 0:00:25]} Bf3 $1 {[%emt 0:00:13]} 75. Be8 {[%emt 0:00:37]} Be4 {[%emt 0:00:32]} 76. Ka5 {[%emt 0:00:36]} Kc5 {[%emt 0:00:14]} 77. h5 {[%emt 0:00:22]} Rg2 {[%emt 0:01:08]} 78. Bxg6 {[%emt 0:00:31]} Bc6 {[%emt 0:01:13]} 79. Rf7 {[%emt 0:00:33]} Rg4 {[%emt 0:00:00]} 80. Bc2 {[%emt 0:00:21] Threatens to win with g6.} Kd6 {[%emt 0:00:28]} 81. g6 {[%emt 0:00:23]} Bd5 {[%emt 0:00:27]} 82. Rf5 {[%emt 0:00:35]} Be6 {[%emt 0:00:08]} 83. Rb5 {[%emt 0:00:17]} Bd7 {[%emt 0:00:08] [#]} 84. h6 $1 {[%emt 0:01:31] Weighted Error Value: White=0.17 (very precise) /Black=0.19 (very precise)} 1-0

[Event "16th Serbian Championship 2022"]
[Site "Bajina Basta"]
[Date "2022.12.09"]
[Round "4.5"]
[White "Ivic, Velimir"]
[Black "Perunovic, Milos"]
[Result "1/2-1/2"]
[ECO "B45"]
[WhiteElo "2560"]
[BlackElo "2541"]
[Annotator "TA"]
[PlyCount "51"]
[EventDate "2022.12.06"]
[EventType "tourn"]
[EventCountry "SRB"]
[SourceTitle "playchess.com"]
[Source "ChessBase"]
[SourceQuality "1"]
[TimeControl "40/5400+30:1800+30"]

{[%evp 15,51,0,0,0,0,-15,-16,-7,0,7,21,19,58,45,42,51,46,29,25,20,52,52,50,47,54,-10,0,0,0,0,0,0,0,-6,0,0,0,0]} 1. e4 {[%emt 0:00:04]} c5 {[%emt 0:00:16]} 2. Nf3 {[%emt 0:00:08]} e6 {[%emt 0:00:19]} 3. d4 {[%emt 0:00:16]} cxd4 {[%emt 0:00:08]} 4. Nxd4 {[%emt 0:00:04]} Nf6 {[%emt 0:00:22][%cal Bg8f6,Bf6e4,Be4c5][%mdl 32]} 5. Nc3 {[%emt 0:00:15]} Nc6 {[%emt 0:00:12]} 6. Be2 {[%emt 0:00:59]} Bb4 {[%emt 0:01:15]} 7. O-O {[%emt 0:01:07]} Bxc3 {[%emt 0:00:30]} 8. bxc3 {[%emt 0:00:06]} Nxe4 {[%emt 0:00:07]} 9. Nxc6 {[%emt 0:00:41] B45: Sicilian Four Knights.} dxc6 {[%emt 0:00:06]} 10. Bd3 {[%emt 0:00:34]} (10. Qd4 {simplifies} Qxd4 11. cxd4 O-O 12. Bf3) 10... Nc5 {[%emt 0:34:39]} 11. Qg4 {[%emt 0:01:04] [#]} (11. Ba3 {simplifies} Nxd3 12. cxd3 Qa5 13. Bb4) 11... O-O $146 {[%emt 0:00:29]} ({Predecessor:} 11... Qf6 12. Bg5 Qxc3 13. Rad1 h6 14. Be3 O-O 15. Bxh6 f5 16. Qg6 Qf6 17. Qxf6 Rxf6 {½-½ (52) Huschenbeth,N (2628)-Ragger,M (2669) Germany 2021}) 12. Ba3 {[%emt 0:02:53] This pair of bishops is nice.} e5 {[%emt 0:09:45]} 13. Qg3 {[%emt 0:19:26] Really sharp!} b6 {[%emt 0:00:37]} 14. Bxc5 {[%emt 0:01:31]} ({Reject} 14. Qxe5 Re8 15. Qg3 Nxd3 16. cxd3 Bf5 $15) 14... bxc5 {[%emt 0:00:15]} 15. Qxe5 {[%emt 0:00:10]} Qd5 {[%emt 0:01:17]} 16. Qf4 {[%emt 0:02:59]} Be6 {[%emt 0:04:58]} 17. Rfe1 {[%emt 0:06:20]} c4 {[%emt 0:07:20]} 18. Re5 {[%emt 0:05:17]} Qd7 {[%emt 0:01:04]} 19. Bf1 {[%emt 0:01:19]} Rad8 {[%emt 0:06:16]} 20. Qg3 {[%emt 0:07:47]} (20. Bxc4 $14 Bxc4 21. Qxc4) 20... Qd2 {[%emt 0:02:02] The position is equal.} 21. Re2 {[%emt 0:00:58]} Qd5 {[%emt 0:01:22]} 22. h4 {[%emt 0:06:03]} h6 {[%emt 0:04:07]} 23. a4 {[%emt 0:07:01] Against Qb5} Rd7 {[%emt 0:06:35]} 24. a5 {[%emt 0:01:55]} Rfd8 {[%emt 0:00:17]} 25. Qf4 {[%emt 0:08:06]} Qf5 {[%emt 0:04:08]} 26. Qxf5 {[%emt 0:09:49] Weighted Error Value: White=0.07 (flawless) /Black=0.09 (flawless)} 1/2-1/2

[Event "16th Serbian Championship 2022"]
[Site "Bajina Basta"]
[Date "2022.12.10"]
[Round "5.1"]
[White "Perunovic, Milos"]
[Black "Martic, Ivan"]
[Result "1-0"]
[ECO "B63"]
[WhiteElo "2541"]
[BlackElo "2270"]
[Annotator "TA"]
[PlyCount "81"]
[EventDate "2022.12.06"]
[EventType "tourn"]
[EventCountry "SRB"]
[SourceTitle "playchess.com"]
[Source "ChessBase"]
[SourceQuality "1"]
[TimeControl "40/5400+30:1800+30"]

{[%evp 20,81,55,11,30,42,34,47,53,34,20,33,43,26,23,-9,0,0,0,0,0,9,0,0,59,56,45,51,98,76,154,160,144,160,170,154,157,131,255,229,274,254,290,308,303,314,303,284,310,308,337,331,367,352,478,462,531,527,513,523,504,352,385,341]} 1. e4 {[%emt 0:00:09]} c5 {[%emt 0:00:09]} 2. Nf3 {[%emt 0:00:15]} d6 {[%emt 0:00:22]} 3. d4 {[%emt 0:00:34]} cxd4 {[%emt 0:00:08]} 4. Nxd4 {[%emt 0:00:07]} Nf6 {[%emt 0:00:09]} 5. Nc3 {[%emt 0:00:16]} Nc6 {[%emt 0:00:11]} 6. Bg5 {[%emt 0:01:04]} Qb6 {[%emt 0:00:19]} 7. Nb3 {[%emt 0:03:32]} e6 {[%emt 0:00:11]} 8. Qd2 {[%emt 0:00:13]} a6 {[%emt 0:00:39]} 9. O-O-O {[%emt 0:00:09]} Be7 {[%emt 0:00:13]} 10. f3 {[%emt 0:03:54]} O-O {[%emt 0:00:38]} 11. h4 {[%emt 0:05:29][%cal Bh2h4,Bh4h5,Bh5h6][%mdl 32]} Qc7 {[%emt 0:09:13] B63: Sicilian: Richter-Rauzer: 7...Be7 and unusual Black 7th moves.} 12. h5 {[%emt 0:09:41]} Rd8 {[%emt 0:04:36]} 13. h6 {[%emt 0:15:12] Hoping for hxg7.} g6 {[%emt 0:05:26] White is slightly better.} 14. Qf4 {[%emt 0:07:31]} Ne8 {[%emt 0:00:33]} 15. Bxe7 {[%emt 0:00:05]} Qxe7 {[%emt 0:01:17]} 16. Qe3 {[%emt 0:00:29]} b5 {[%emt 0:02:29][%cal Bb7b5,Bb5b4][%mdl 32]} 17. f4 {[%emt 0:00:14]} b4 {[%emt 0:01:06]} 18. Na4 {[%emt 0:05:40][%cal Bc3a4,Ba4b6,Bb6d7][%mdl 32]} Rb8 {[%emt 0:00:45]} 19. Be2 {[%emt 0:05:03]} e5 {[%emt 0:05:55] [#]} 20. Rhf1 $146 {[%emt 0:06:57]} ({Predecessor:} 20. fxe5 Nxe5 21. Nb6 Qa7 22. Nd5 Qxe3+ {½-½ (22) Coyne,D (2263)-Eman,J (2237) ICCF email 2014}) 20... exf4 {[%emt 0:06:36]} 21. Qxf4 {[%emt 0:00:07]} Bd7 {[%emt 0:11:23]} ({Black should play} 21... a5 $11) 22. Qf2 $14 {[%emt 0:06:37]} (22. Bxa6 $2 {is the wrong capture.} Ne5 $19) 22... Ne5 {[%emt 0:11:45]} 23. Nb6 {[%emt 0:00:14]} Qg5+ {[%emt 0:00:54] White leaves nothing to chance now.} (23... Nc7 $14) 24. Kb1 $16 {[%emt 0:00:22]} Qxh6 {[%emt 0:01:12] [#]} (24... Bc6 $142) 25. Nxd7 $1 {[%emt 0:07:28] White is more active.} ({Much weaker is} 25. Bxa6 $6 Bg4 $11) 25... Rxd7 {[%emt 0:00:18] [#]} 26. Nc5 $1 {[%emt 0:00:05][%mdl 576]} Re7 {[%emt 0:09:31]} (26... Rdd8 27. Nxa6) 27. Nxa6 {[%emt 0:00:21][%cal Bc5a6,Ba6b4,Bb4d5,Bd5f6][%mdl 32]} Rbb7 {[%emt 0:00:12]} 28. Rd4 {[%emt 0:01:52]} Rb6 {[%emt 0:11:40]} (28... b3 $16) 29. Rxb4 {[%emt 0:04:49]} Rxb4 {[%emt 0:00:29]} 30. Nxb4 {[%emt 0:00:06] And now Nd5 would win.} Qd2 {[%emt 0:02:23]} 31. Nd5 {[%emt 0:03:29]} Rb7 {[%emt 0:00:19]} 32. Ba6 {[%emt 0:00:38] The board is on fire.} Qxf2 {[%emt 0:01:10]} 33. Rxf2 {[%emt 0:00:05]} Ra7 {[%emt 0:00:24]} 34. Bb5 {[%emt 0:01:00]} Ng7 {[%emt 0:01:05]} 35. Nf6+ {[%emt 0:01:56]} Kh8 {[%emt 0:00:09]} 36. Rd2 {[%emt 0:00:05]} h5 {[%emt 0:00:49]} 37. Rxd6 {[%emt 0:00:17]} Ne6 {[%emt 0:00:07] Inhibits Rd8+.} 38. Rd5 {[%emt 0:00:49]} Ng4 {[%emt 0:01:11]} 39. Nxg4 {[%emt 0:01:36]} hxg4 {[%emt 0:00:06]} 40. g3 {[%emt 0:03:23]} Kg7 {[%emt 0:00:24]} 41. Be2 {[%emt 0:30:47] Weighted Error Value: White=0.08 (flawless) /Black=0.29 (precise)} 1-0

[Event "16th Serbian Championship 2022"]
[Site "Bajina Basta"]
[Date "2022.12.10"]
[Round "5.2"]
[White "Bogosavljevic, Boban"]
[Black "Ivic, Velimir"]
[Result "0-1"]
[ECO "E67"]
[WhiteElo "2521"]
[BlackElo "2560"]
[Annotator "TA"]
[PlyCount "100"]
[EventDate "2022.12.06"]
[EventType "tourn"]
[EventCountry "SRB"]
[SourceTitle "playchess.com"]
[Source "ChessBase"]
[SourceQuality "1"]
[TimeControl "40/5400+30:1800+30"]

{[%evp 19,100,-17,-37,-52,-63,-65,-57,-76,-78,-66,-50,-62,-43,-64,-58,-60,-40,-117,-109,-112,-118,-177,-122,-201,-189,-183,-36,-27,-28,-189,-185,-184,-181,-518,-252,-272,-222,-215,-204,-238,-106,-105,-136,-134,-130,-134,-128,-102,-87,-85,-75,-238,-222,-202,-100,-392,-392,-392,-320,-368,-257,-352,-337,-364,-327,-467,-450,-440,-437,-769,-760,-785,-788,-2760,-1697,-4930,-4926,-29988,-29989,-29997,-29998,-29998,-29999]} 1. Nf3 {[%emt 0:03:03]} Nf6 {[%emt 0:00:09]} 2. g3 {[%emt 0:00:16]} g6 {[%emt 0:00:10]} 3. Bg2 {[%emt 0:00:08]} Bg7 {[%emt 0:00:05]} 4. O-O {[%emt 0:00:06]} O-O {[%emt 0:00:42]} 5. c4 {[%emt 0:00:13]} d6 {[%emt 0:00:26]} 6. d4 {[%emt 0:00:05]} Nbd7 {[%emt 0:01:17]} 7. Nc3 {[%emt 0:00:11]} e5 {[%emt 0:00:16]} 8. dxe5 {[%emt 0:01:09]} dxe5 {[%emt 0:00:11]} 9. h3 {[%emt 0:01:27]} c6 {[%emt 0:04:17]} 10. Be3 {[%emt 0:05:38]} Qe7 {[%emt 0:03:15]} 11. Nd2 {[%emt 0:13:41] E67: King's Indian: Fianchetto: 6...Nbd7.} Ne8 {[%emt 0:07:03][%cal Bf6e8,Be8d6,Bd6c4,Bc4e3][%mdl 32]} 12. Nb3 {[%emt 0:14:08]} f5 {[%emt 0:04:59] [#]} 13. Qc1 $146 {[%emt 0:05:25] Black is slightly better.} ({Predecessor:} 13. Qd2 Nc7 14. Rad1 Ne6 15. Qd6 Qf7 16. Qb4 Re8 17. Na4 e4 18. Qd2 Be5 19. Qc2 {0-1 (29) Holmsten,A (2476)-Sklyarov,D (2348) Turku 2010}) 13... Nd6 {[%emt 0:04:54]} 14. Rd1 {[%emt 0:06:28]} f4 {[%emt 0:14:12]} (14... Nxc4 15. Bd5+ $1 (15. Nd5 cxd5 16. Bxd5+ Kh8 $11) 15... cxd5 16. Nxd5 $11) (14... Nf7 {simplifies} 15. Rb1 Re8 16. Nd2 e4) 15. gxf4 {[%emt 0:02:34]} Nxc4 {[%emt 0:00:57]} 16. fxe5 {[%emt 0:08:52][%cal Oc3d5]} (16. Nd5 cxd5 17. Bxd5+ Kh8 18. Bxc4 (18. Qxc4 exf4 19. Bd4 Qg5+ 20. Kh1 Ne5 $17) 18... Qh4 $17) 16... Nxe3 {[%emt 0:03:49]} (16... Qxe5 17. Bd4 Qe7 18. Ne4 $14) (16... Ndxe5 17. Bc5 Qh4 18. Bxf8 Kxf8 19. Rd4 $16) (16... Bxe5 17. Bh6 $11) 17. Qxe3 {[%emt 0:00:06]} Bxe5 {[%emt 0:05:32]} (17... Nxe5 18. f4 $16) 18. Na5 {[%emt 0:07:31]} (18. Nd2 $15) 18... Nb6 $1 $17 {[%emt 0:05:00]} 19. Rac1 {[%emt 0:12:12]} Qg7 {[%emt 0:03:41]} 20. Qc5 {[%emt 0:00:24]} Bc7 {[%emt 0:11:04] A strong pair of Bishops.} (20... Be6 $19 {Hoping for ...Rf5.} 21. Nxb7 Qf6) 21. Ne4 {[%emt 0:07:09]} (21. Nc4 $17) 21... Rf5 $1 $19 {[%emt 0:02:56]} (21... Qxb2 22. Rc2 Qg7 23. Nd6 $17) 22. Qa3 {[%emt 0:01:09]} Nd5 {[%emt 0:07:47]} (22... Qe5 $19 23. Nb3 Nd5) 23. Ng3 $15 {[%emt 0:00:30]} Nf4 {[%emt 0:08:23]} 24. Nxc6 {[%emt 0:02:39]} (24. Nxb7 $1 $11 {and White is okay.} Nxg2 25. Nxf5 gxf5 26. Qc3 Qxc3 27. Rxc3 Bxb7 28. Rd7) 24... bxc6 $19 {[%emt 0:00:37]} 25. Rxc6 {[%emt 0:00:10]} Rb8 $1 {[%emt 0:02:08] aiming for ...Rf8.} 26. Qxa7 $2 {[%emt 0:06:59] [#]} (26. e3 {is a better chance.} Nxg2 27. Nxf5 Bxf5 28. Qc5) 26... Rb7 {[%emt 0:07:38]} (26... Bb7 27. Nxf5 gxf5 28. Qxb8+ $1 Bxb8 29. Rd8+ Kf7 30. Rd7+ Kf8 31. Rxg7 Bxc6 32. Rxh7 $18) (26... Nxe2+ $142 $1 {[%mdl 512]} 27. Kh1 (27. Nxe2 $2 Bh2+ 28. Kxh2 Qxa7 $19) 27... Nxg3+ 28. fxg3 Bb7) 27. Qa4 {[%emt 0:01:15]} Rf8 {[%emt 0:00:31]} 28. Qc4+ {[%emt 0:00:28]} Kh8 {[%emt 0:00:59]} 29. Rc1 {[%emt 0:00:22][%cal Rc6c7]} Bxh3 {[%emt 0:00:48]} (29... Nxh3+ 30. Bxh3 Bxg3 31. Rxc8 Bxf2+ 32. Kg2 $14) (29... Rf7 $19 {is more deadly. Strongly threatening ...Nxg2.} 30. Bf3 Nxh3+ 31. Kg2 Nf4+ 32. Kh1 Bh3) 30. Rxc7 $17 {[%emt 0:00:39]} Rxc7 {[%emt 0:00:06]} (30... Qxb2 31. Rxb7 Qe5 32. Qc7 Qxc7 33. Rcxc7 Re8 34. Ne4 $1 Nd5 35. Rxh7+ Kg8 36. Rxh3) 31. Qxc7 {[%emt 0:00:04]} Qxc7 {[%emt 0:00:32]} ({Worse is} 31... Nxg2 32. Qxg7+ Kxg7 33. Kh2 $15) 32. Rxc7 {[%emt 0:00:02] Black must now prevent Bf3.} Bxg2 {[%emt 0:00:12][%cal Bh3g2,Bg2f1,Bf1e2][%mdl 32]} ({Not} 32... Nxg2 33. b4 $17) 33. f3 {[%emt 0:01:57]} h5 {[%emt 0:01:35][%cal Bh7h5,Bh5h4][%mdl 32]} 34. Ne4 {[%emt 0:00:00]} h4 {[%emt 0:00:36][%cal Og2h3]} ({But not} 34... Nxe2+ 35. Kxg2 Nf4+ 36. Kg3 $16) 35. Kh2 $2 {[%emt 0:00:27] [#]} (35. a4 $17) 35... Bf1 $1 $19 {[%emt 0:00:38]} 36. Ng5 {[%emt 0:00:31]} Kg8 {[%emt 0:00:32]} (36... Nxe2 $19 {has better winning chances. Threatens to win with ...Kg8.} 37. Nf7+ Kh7 38. Ne5+ Kg8) 37. Rc4 $2 {[%emt 0:00:30][%mdl 8192]} (37. e3 $17 Nd3 38. Kg1) 37... Bxe2 {[%emt 0:00:14]} 38. Re4 {[%emt 0:00:30]} Bd3 {[%emt 0:00:11] Inhibits a4.} 39. Rd4 {[%emt 0:00:17]} Rf5 {[%emt 0:00:57] Against a4. ...Bf1 is the strong threat.} 40. b4 {[%emt 0:00:43]} Bb5 {[%emt 0:00:37] Prevents a4.} 41. Ne4 {[%emt 0:01:32]} Be2 {[%emt 0:10:34]} 42. Nd2 {[%emt 0:16:55]} (42. Ng5 $142) 42... g5 {[%emt 0:04:35]} 43. a4 {[%emt 0:03:28]} Kg7 {[%emt 0:07:13]} 44. Ne4 {[%emt 0:03:47]} (44. Rd7+ $142 Kf6 45. b5) 44... Ng6 {[%emt 0:02:01]} 45. Rd7+ {[%emt 0:05:08]} Kh6 {[%emt 0:00:54]} 46. b5 {[%emt 0:01:01]} Bxf3 {[%emt 0:00:28]} 47. Nd6 {[%emt 0:00:17]} Rc5 {[%emt 0:00:44] ( -> ...g4)} 48. b6 {[%emt 0:00:26]} Nf4 {[%emt 0:03:08] Black mates.} 49. b7 {[%emt 0:01:25]} Rc2+ {[%emt 0:00:06]} 50. Kg1 {[%emt 0:00:03]} Nh3+ {[%emt 0:00:04] Weighted Error Value: White=0.95/Black=0.25 (precise)} 0-1